bitfinex-derivatives/quotes_BTCF0:USTF0_20250910
["timestamp","ask_amount","ask_price","bid_price","bid_amount"]
[1757499065285,0.80536,112380.0,112370.0,0.9062706]
[1757499065880,0.82443392,112380.0,112370.0,0.85825983]
[1757499066682,0.01907392,112380.0,112370.0,0.85825983]
[1757499066883,0.82443392,112380.0,112370.0,0.85825983]
[1757499067786,0.01907392,112380.0,112370.0,0.85825983]
[1757499067987,0.82443392,112380.0,112370.0,0.85825983]
[1757499069083,0.82862392,112380.0,112370.0,0.85825983]
[1757499069889,0.82862392,112380.0,112370.0,0.76410567]
[1757499070683,0.82862392,112380.0,112370.0,0.66995151]
[1757499070886,0.82862392,112380.0,112370.0,0.40330567]
[1757499073880,0.82862392,112380.0,112370.0,0.30915151]
[1757499074084,0.82862392,112380.0,112370.0,0.40330567]
[1757499075599,0.02326392,112380.0,112370.0,0.40330567]
[1757499075900,0.82858392,112380.0,112370.0,0.40330567]
[1757499094230,0.02326392,112380.0,112370.0,0.49745983]
[1757499094420,0.01907392,112380.0,112370.0,0.49745983]
[1757499094726,0.82431392,112380.0,112370.0,0.49745983]
[1757499094925,0.82850392,112380.0,112370.0,0.49745983]
[1757499095820,0.82850392,112380.0,112370.0,0.5454706]
[1757499099330,0.82850392,112380.0,112370.0,0.2954706]
[1757499104626,0.01907392,112380.0,112370.0,0.9062706]
[1757499105029,2.20427553,112410.0,112370.0,1.26952476]
[1757499105227,2.17944506,112410.0,112400.0,0.22400832]
[1757499105427,2.98464506,112410.0,112400.0,0.22400832]
[1757499105638,2.99377954,112410.0,112400.0,0.22400832]
[1757499106137,2.16039,112410.0,112400.0,0.22400832]
[1757499106332,2.96559,112410.0,112400.0,0.22400832]
[1757499108534,3.03538477,112410.0,112400.0,0.22400832]
[1757499110334,3.03538477,112410.0,112400.0,0.3180004]
[1757499112232,2.67458477,112410.0,112400.0,0.3180004]
[1757499116040,0.87918477,112410.0,112400.0,0.3180004]
[1757499117538,1.23998477,112410.0,112400.0,0.3180004]
[1757499121446,1.38113497,112410.0,112400.0,0.0357]
[1757499121644,1.38113497,112410.0,112400.0,0.1411502]
[1757499122545,1.38113497,112410.0,112390.0,0.01287]
[1757499122745,1.23998477,112410.0,112400.0,0.1411502]
[1757499123945,1.38113497,112410.0,112400.0,0.1411502]
[1757499124253,1.38113497,112410.0,112390.0,0.01287]
[1757499124451,1.23998477,112410.0,112400.0,0.1411502]
[1757499125640,1.38113497,112410.0,112400.0,0.1540202]
[1757499125840,1.38113497,112410.0,112400.0,0.1768502]
[1757499126550,1.38093497,112410.0,112400.0,0.3180004]
[1757499127047,1.23974477,112410.0,112400.0,0.3180004]
[1757499127243,1.38089497,112410.0,112400.0,0.3180004]
[1757499128151,0.43478477,112410.0,112400.0,0.3180004]
[1757499128447,1.38089497,112410.0,112400.0,0.3180004]
[1757499128648,1.23974477,112410.0,112400.0,0.3180004]
[1757499129046,1.38089497,112410.0,112400.0,0.3180004]
[1757499129957,1.38089497,112410.0,112400.0,0.0357]
[1757499130142,1.38089497,112410.0,112400.0,0.3180004]
[1757499130344,1.4289705,112410.0,112400.0,0.3180004]
[1757499131338,1.4289705,112410.0,112400.0,0.1768502]
[1757499132243,1.4289705,112410.0,112400.0,0.3180004]
[1757499132746,1.4289705,112410.0,112400.0,0.1768502]
[1757499135356,1.38089497,112410.0,112400.0,0.1768502]
[1757499136051,1.42889695,112410.0,112400.0,0.1768502]
[1757499136248,1.38089497,112410.0,112400.0,0.1768502]
[1757499138157,1.42889695,112410.0,112400.0,0.1768502]
[1757499140260,1.44805198,112410.0,112400.0,0.1768502]
[1757499140459,1.44805198,112410.0,112390.0,0.01287]
[1757499140759,0.5061402,112400.0,112390.0,0.1758202]
[1757499140961,0.52529523,112400.0,112390.0,0.1758202]
[1757499141759,0.52529523,112400.0,112390.0,0.1778202]
[1757499142259,0.52529523,112400.0,112390.0,0.1758202]
[1757499142459,0.52529523,112400.0,112390.0,0.1778202]
[1757499144262,0.5061402,112400.0,112390.0,0.1778202]
[1757499144464,0.96445276,112400.0,112390.0,0.002]
[1757499147256,0.96445276,112400.0,112370.0,0.1543702]
[1757499147463,0.5029402,112380.0,112370.0,0.1543702]
[1757499147664,0.52210058,112380.0,112370.0,0.1543702]
[1757499148465,0.52210058,112380.0,112370.0,0.1603702]
[1757499149165,1.32702058,112380.0,112370.0,0.1821702]
[1757499151469,1.33609537,112380.0,112370.0,0.1821702]
[1757499151663,0.38095038,112380.0,112370.0,0.1821702]
[1757499151863,1.32706058,112380.0,112370.0,0.1821702]
[1757499152262,1.18591038,112380.0,112370.0,0.1821702]
[1757499152666,1.32706058,112380.0,112370.0,0.1821702]
[1757499154971,1.33592369,112380.0,112370.0,0.1821702]
[1757499156172,0.38981349,112380.0,112370.0,0.1821702]
[1757499156370,0.38095038,112380.0,112370.0,0.1821702]
[1757499156759,1.18591038,112380.0,112370.0,0.3233204]
[1757499157072,1.18591038,112380.0,112370.0,0.1821702]
[1757499157873,0.82511038,112380.0,112370.0,0.1821702]
[1757499159162,0.82511038,112380.0,112370.0,0.04102]
[1757499159370,0.82511038,112380.0,112370.0,0.1821702]
[1757499159977,1.32706058,112380.0,112370.0,0.1821702]
[1757499162468,1.18591038,112380.0,112370.0,0.1821702]
[1757499163177,1.18591038,112380.0,112370.0,0.04102]
[1757499163378,1.18591038,112380.0,112370.0,0.1821702]
[1757499165068,1.18595038,112380.0,112370.0,0.1821702]
[1757499170371,1.18595038,112380.0,112370.0,0.1351696]
[1757499175885,1.23395236,112380.0,112370.0,0.1351696]
[1757499182989,1.32810196,112380.0,112370.0,0.1351696]
[1757499184587,1.32810196,112380.0,112370.0,0.1133696]
[1757499185196,1.23395236,112380.0,112370.0,0.1133696]
[1757499185394,1.32810196,112380.0,112370.0,0.1133696]
[1757499185800,1.28009998,112380.0,112370.0,0.1133696]
[1757499186293,1.18595038,112380.0,112370.0,0.1133696]
[1757499186801,1.18595038,112380.0,112370.0,0.0424]
[1757499186996,1.18595038,112380.0,112370.0,0.1365496]
[1757499189697,0.38095038,112380.0,112370.0,0.1365496]
[1757499189899,1.18595038,112380.0,112370.0,0.1365496]
[1757499190994,0.38095038,112380.0,112370.0,0.1365496]
[1757499191300,1.18595038,112380.0,112370.0,0.1365496]
[1757499191702,0.82515038,112380.0,112370.0,0.1365496]
[1757499198706,0.82515038,112380.0,112370.0,0.1454396]
[1757499209814,0.82521191,112380.0,112370.0,0.1454396]
[1757499211208,0.82521191,112380.0,112370.0,0.01489]
[1757499211414,1.28016151,112380.0,112370.0,0.01489]
[1757499211611,1.28016151,112380.0,112370.0,0.04981]
[1757499211812,1.28016151,112380.0,112370.0,0.1439596]
[1757499212115,1.18601191,112380.0,112370.0,0.1439596]
[1757499212817,1.28016151,112380.0,112370.0,0.1439596]
[1757499215222,1.28016151,112380.0,112370.0,0.02785]
[1757499215923,1.28016151,112380.0,112370.0,0.1219996]
[1757499215924,1.32816349,112380.0,112370.0,0.1219996]
[1757499216720,1.32816349,112380.0,112370.0,0.02785]
[1757499217421,1.32816349,112380.0,112370.0,0.04981]
[1757499221223,0.10404349,112380.0,112370.0,0.04981]
[1757499221420,0.2060292,112420.0,112370.0,0.04981]
[1757499221421,0.06402387,112440.0,112390.0,0.03616]
[1757499221615,0.25570984,112490.0,112460.0,0.03616]
[1757499221824,0.02307,112490.0,112480.0,0.3186088]
[1757499222017,0.02307,112490.0,112480.0,0.5686088]
[1757499222324,1.81859,112510.0,112500.0,0.03616]
[1757499222525,1.28234546,112510.0,112500.0,0.3569165]
[1757499222727,1.45093498,112510.0,112500.0,0.35691251]
[1757499223024,2.27337498,112510.0,112500.0,0.42662953]
[1757499223328,2.27337498,112510.0,112500.0,1.15850971]
[1757499223626,2.27321498,112510.0,112500.0,1.06436011]
[1757499223825,2.27317498,112510.0,112500.0,1.06436011]
[1757499224324,1.45093498,112510.0,112500.0,1.05385278]
[1757499224521,2.27293498,112510.0,112500.0,1.05385278]
[1757499224716,2.27493498,112510.0,112500.0,1.05385278]
[1757499225221,1.45093498,112510.0,112500.0,1.05385278]
[1757499225420,1.45093498,112510.0,112500.0,1.0435772]
[1757499225625,2.27273498,112510.0,112500.0,1.17958998]
[1757499225821,2.27273498,112510.0,112500.0,1.20418301]
[1757499226128,1.45093498,112510.0,112500.0,1.06817023]
[1757499226424,1.45093498,112510.0,112500.0,1.05426991]
[1757499226619,2.27245498,112510.0,112500.0,1.05426991]
[1757499227220,1.45093498,112510.0,112500.0,1.05426991]
[1757499227522,2.27237498,112510.0,112500.0,1.05426991]
[1757499227723,1.45093498,112510.0,112500.0,1.06469243]
[1757499227915,2.27229498,112510.0,112500.0,0.97054283]
[1757499228120,2.27229498,112510.0,112500.0,0.97054279]
[1757499228321,2.27229498,112510.0,112500.0,1.04009936]
[1757499228520,2.27229498,112510.0,112500.0,1.06597783]
[1757499228720,1.45293498,112510.0,112500.0,1.06597783]
[1757499229220,2.27433498,112510.0,112500.0,1.06597783]
[1757499229819,1.45293498,112510.0,112500.0,1.06597783]
[1757499230127,2.27413498,112510.0,112500.0,1.04009936]
[1757499230326,2.27413498,112510.0,112500.0,1.1335695]
[1757499231927,2.27397498,112510.0,112500.0,1.1335695]
[1757499232720,2.10538546,112510.0,112500.0,1.1335695]
[1757499232922,1.28434546,112510.0,112500.0,1.1335695]
[1757499233221,2.27345498,112510.0,112500.0,0.81564016]
[1757499233527,2.41913965,112510.0,112500.0,0.90997723]
[1757499233825,2.66933965,112510.0,112500.0,0.87290719]
[1757499234025,1.84865965,112510.0,112500.0,0.73202252]
[1757499234221,1.8209548,112510.0,112500.0,0.01042252]
[1757499234528,2.6415548,112510.0,112490.0,0.3608]
[1757499234724,0.28358934,112500.0,112490.0,0.3608]
[1757499235527,0.28358934,112500.0,112480.0,0.3608]
[1757499235828,0.96342467,112490.0,112480.0,0.50168467]
[1757499236022,0.96338467,112490.0,112480.0,0.50168467]
[1757499237029,0.96338467,112490.0,112480.0,0.3608]
[1757499237224,0.8225,112490.0,112480.0,0.50168467]
[1757499237526,0.8223,112490.0,112480.0,0.50168467]
[1757499237729,0.96318467,112490.0,112480.0,0.50168467]
[1757499237923,0.00182,112490.0,112480.0,0.51057467]
[1757499238227,0.82218,112490.0,112480.0,0.68761934]
[1757499238526,0.14470467,112490.0,112480.0,0.52356467]
[1757499238726,0.96506467,112490.0,112480.0,0.52356467]
[1757499239227,0.14470467,112490.0,112480.0,0.52356467]
[1757499239428,0.96502467,112490.0,112480.0,0.54673467]
[1757499240630,0.00382,112490.0,112480.0,0.54673467]
[1757499240829,0.96490467,112490.0,112480.0,0.54673467]
[1757499241328,0.53558934,112490.0,112480.0,0.00889]
[1757499241527,1.71630934,112490.0,112480.0,0.00775]
[1757499241825,1.91630934,112490.0,112460.0,0.50168467]
[1757499242031,0.14088467,112470.0,112460.0,0.3608]
[1757499242333,0.96116467,112470.0,112460.0,0.3608]
[1757499243130,0.96116467,112470.0,112460.0,0.50168467]
[1757499243432,0.82024,112470.0,112460.0,0.67872934]
[1757499243730,0.82024,112470.0,112460.0,0.53784467]
[1757499243731,0.14088467,112470.0,112460.0,0.53784467]
[1757499243924,0.96096467,112470.0,112460.0,0.53784467]
[1757499244430,0.82008,112470.0,112460.0,0.39696]
[1757499244630,0.49300008,112500.0,112480.0,0.01299]
[1757499244833,0.82004,112490.0,112480.0,0.01299]
[1757499245324,1.20224008,112490.0,112470.0,0.52916008]
[1757499245525,0.95224008,112490.0,112470.0,0.39696]
[1757499245733,0.13220008,112490.0,112470.0,0.52916008]
[1757499246030,0.82008,112480.0,112470.0,0.52916008]
[1757499246431,0.002,112490.0,112480.0,0.03616]
[1757499246632,0.822,112490.0,112480.0,0.17805797]
[1757499246833,0.822,112490.0,112480.0,0.53885797]
[1757499247032,0.82196,112490.0,112480.0,0.53885797]
[1757499247327,0.002,112490.0,112480.0,0.53885797]
[1757499247533,0.57696,112490.0,112480.0,0.81459977]
[1757499247831,0.82192,112490.0,112480.0,0.83833714]
[1757499248532,0.82192,112490.0,112480.0,0.85131627]
[1757499249133,0.82192,112490.0,112480.0,0.8513163]
[1757499249328,0.82192,112490.0,112480.0,0.8595559]
[1757499250236,0.82192,112490.0,112480.0,0.90752136]
[1757499250534,0.82192,112490.0,112480.0,0.89782347]
[1757499250726,0.82192,112490.0,112480.0,0.84985801]
[1757499251438,0.82192,112490.0,112480.0,0.81788104]
[1757499251625,0.82192,112490.0,112480.0,0.86565959]
[1757499257230,0.82192,112490.0,112480.0,0.46028951]
[1757499257432,0.82192,112490.0,112480.0,0.61457959]
[1757499257633,0.82192,112490.0,112480.0,0.64644924]
[1757499257935,0.82192,112490.0,112480.0,0.63347008]
[1757499258233,0.82192,112490.0,112480.0,0.60160043]
[1757499259840,0.82192,112490.0,112480.0,0.63347878]
[1757499260540,0.82192,112490.0,112480.0,0.60160043]
[1757499260745,0.82192,112490.0,112480.0,0.58570544]
[1757499261039,0.82192,112490.0,112480.0,0.45350536]
[1757499261437,0.82192,112490.0,112480.0,0.50128391]
[1757499262145,0.82192,112490.0,112480.0,0.63348399]
[1757499262641,0.82192,112490.0,112480.0,0.58570544]
[1757499262942,0.82192,112490.0,112480.0,0.45350536]
[1757499263244,0.82192,112490.0,112480.0,0.58570544]
[1757499265848,0.82192,112490.0,112480.0,0.60963094]
[1757499266346,0.82192,112490.0,112480.0,0.75931722]
[1757499266544,0.96286318,112490.0,112480.0,0.4455473]
[1757499266840,1.21286318,112490.0,112480.0,0.3865418]
[1757499267239,1.21026318,112490.0,112480.0,0.3995318]
[1757499267546,1.21026318,112490.0,112480.0,0.54047498]
[1757499267746,1.21026318,112490.0,112480.0,0.51473318]
[1757499268046,1.21026318,112490.0,112480.0,0.50174318]
[1757499268246,1.21026318,112490.0,112480.0,0.3608]
[1757499268947,1.21002318,112490.0,112480.0,0.3608]
[1757499269741,0.39294318,112490.0,112480.0,0.3608]
[1757499269934,1.20990318,112490.0,112480.0,0.3608]
[1757499271056,1.35084636,112490.0,112480.0,0.3608]
[1757499271343,1.71164636,112490.0,112470.0,0.40477]
[1757499271543,1.13362954,112480.0,112470.0,0.00889]
[1757499271744,1.08149509,112480.0,112470.0,0.02279708]
[1757499271948,1.03362954,112480.0,112470.0,0.02279708]
[1757499272148,1.13362954,112480.0,112470.0,0.02279708]
[1757499272349,1.13362954,112480.0,112470.0,0.01390708]
[1757499272647,1.13362954,112480.0,112450.0,0.3608]
[1757499272949,0.14094318,112460.0,112450.0,0.3608]
[1757499273149,1.93470318,112460.0,112450.0,0.3608]
[1757499274249,2.00860066,112460.0,112450.0,0.3608]
[1757499275743,2.01743659,112460.0,112450.0,0.3608]
[1757499280550,2.15837977,112460.0,112450.0,0.3608]
[1757499281252,2.97521977,112460.0,112450.0,0.3608]
[1757499283352,2.15837977,112460.0,112450.0,0.3608]
[1757499283552,2.97477977,112460.0,112450.0,0.3608]
[1757499284453,3.11572295,112460.0,112450.0,0.3608]
[1757499284653,3.72652295,112460.0,112440.0,0.36969]
[1757499284958,1.09812636,112450.0,112440.0,0.36969]
[1757499285745,0.28188636,112450.0,112440.0,0.36969]
[1757499285950,1.09832636,112450.0,112440.0,0.36969]
[1757499286158,1.09832636,112450.0,112440.0,0.37069]
[1757499287247,0.28388636,112450.0,112440.0,0.36969]
[1757499287451,1.10028636,112450.0,112440.0,0.36969]
[1757499288869,1.10008636,112450.0,112440.0,0.36969]
[1757499289070,1.10108636,112450.0,112440.0,0.36969]
[1757499289478,1.10108636,112450.0,112440.0,0.3608]
[1757499289768,0.28488636,112450.0,112440.0,0.3608]
[1757499289970,1.10076636,112450.0,112440.0,0.3608]
[1757499290770,1.10076636,112450.0,112440.0,0.36969]
[1757499292471,1.0070336,112450.0,112440.0,0.36969]
[1757499293370,0.1911536,112450.0,112440.0,0.36969]
[1757499293566,1.0066736,112450.0,112440.0,0.36969]
[1757499294571,1.0066336,112450.0,112440.0,0.36969]
[1757499294771,1.0066336,112450.0,112440.0,0.3608]
[1757499295667,0.1911536,112450.0,112440.0,0.3608]
[1757499295872,1.0063936,112450.0,112440.0,0.3608]
[1757499297272,1.05429333,112450.0,112440.0,0.3608]
[1757499297572,1.0063936,112450.0,112440.0,0.3608]
[1757499297769,1.2563936,112450.0,112440.0,0.3608]
[1757499297964,1.2561936,112450.0,112440.0,0.3608]
[1757499298272,1.30409333,112450.0,112440.0,0.3608]
[1757499300874,1.66489333,112450.0,112430.0,0.00889]
[1757499301072,0.69093013,112440.0,112430.0,0.00889]
[1757499301376,1.50581013,112440.0,112430.0,0.00889]
[1757499302279,0.69093013,112440.0,112430.0,0.00889]
[1757499302582,1.50673013,112440.0,112430.0,0.00889]
[1757499304474,1.50649013,112440.0,112430.0,0.00889]
[1757499305480,1.50637013,112440.0,112430.0,0.00889]
[1757499305775,1.50637013,112440.0,112410.0,0.39504]
[1757499305982,0.1881536,112420.0,112410.0,0.39504]
[1757499306376,1.0025136,112420.0,112410.0,0.39504]
[1757499306780,1.0024736,112420.0,112410.0,0.40393]
[1757499307082,1.07359261,112420.0,112410.0,0.40693]
[1757499308184,1.07359261,112420.0,112410.0,0.40593]
[1757499311085,1.07359261,112420.0,112410.0,0.40393]
[1757499311281,1.07315261,112420.0,112410.0,0.40393]
[1757499311474,1.16722941,112420.0,112410.0,0.36969]
[1757499311679,1.21512914,112420.0,112410.0,0.00889]
[1757499311883,1.21516914,112420.0,112410.0,0.00889]
[1757499312991,1.21512914,112420.0,112410.0,0.00889]
[1757499313286,1.21712914,112420.0,112410.0,0.00889]
[1757499314683,1.21692914,112420.0,112410.0,0.00889]
[1757499317692,1.21693921,112420.0,112410.0,0.00889]
[1757499319994,1.16902941,112420.0,112410.0,0.00889]
[1757499320194,1.21693745,112420.0,112410.0,0.00889]
[1757499322899,1.2321034,112420.0,112410.0,0.00889]
[1757499324188,1.4821034,112420.0,112400.0,0.3608]
[1757499324388,2.03103545,112410.0,112400.0,0.3608]
[1757499324791,2.03103545,112410.0,112390.0,0.37417]
[1757499324992,0.81288,112400.0,112390.0,0.01337]
[1757499325196,0.86080077,112400.0,112390.0,0.37417]
[1757499325596,0.86080077,112400.0,112390.0,0.01337]
[1757499325903,0.82162492,112400.0,112390.0,0.01337]
[1757499326194,1.00977852,112400.0,112390.0,0.01337]
[1757499326491,1.00977852,112400.0,112390.0,0.01437]
[1757499326989,1.01077852,112400.0,112390.0,0.01337]
[1757499327189,1.01177852,112400.0,112390.0,0.01337]
[1757499327690,1.01177852,112400.0,112380.0,0.39614]
[1757499327890,0.1881536,112390.0,112380.0,0.39614]
[1757499328091,0.1881536,112390.0,112380.0,0.37417]
[1757499329398,0.1881536,112390.0,112380.0,0.39614]
[1757499330485,1.0007136,112390.0,112380.0,0.39614]
[1757499335802,0.1881536,112390.0,112380.0,0.39614]
[1757499336099,1.0002736,112390.0,112380.0,0.39614]
[1757499336600,0.1881536,112390.0,112380.0,0.39614]
[1757499336801,1.0001936,112390.0,112380.0,0.39614]
[1757499338594,0.1881536,112390.0,112380.0,0.39614]
[1757499338796,1.0000336,112390.0,112380.0,0.39614]
[1757499339403,1.0000336,112390.0,112380.0,0.37417]
[1757499339995,1.0000336,112390.0,112380.0,0.39614]
[1757499340195,1.0000336,112390.0,112380.0,0.37417]
[1757499341805,0.1881536,112390.0,112380.0,0.37417]
[1757499342007,0.9999136,112390.0,112380.0,0.37417]
[1757499343810,0.1881536,112390.0,112380.0,0.37417]
[1757499344004,0.9999136,112390.0,112380.0,0.37417]
[1757499345508,0.9999136,112390.0,112380.0,0.3608]
[1757499346607,1.0009136,112390.0,112380.0,0.3608]
[1757499346900,1.0019136,112390.0,112380.0,0.3608]
[1757499348103,1.2519136,112390.0,112380.0,0.3608]
[1757499348304,1.29983437,112390.0,112370.0,0.38289]
[1757499348509,0.1881536,112380.0,112370.0,0.374]
[1757499349709,0.1881536,112380.0,112370.0,0.03477]
[1757499350202,1.06894906,112380.0,112370.0,0.39557]
[1757499350402,0.97487226,112380.0,112370.0,0.39557]
[1757499350608,1.06894906,112380.0,112370.0,0.39557]
[1757499351512,1.06894906,112380.0,112370.0,0.03477]
[1757499352314,1.30463861,112380.0,112370.0,0.03477]
[1757499352912,1.30563861,112380.0,112370.0,0.03477]
[1757499353114,1.30663861,112380.0,112370.0,0.0132]
[1757499353309,1.30663861,112380.0,112370.0,0.03477]
[1757499354415,1.30651861,112380.0,112370.0,0.03477]
[1757499356015,1.35443938,112380.0,112370.0,0.03477]
[1757499362619,0.54339938,112380.0,112370.0,0.03477]
[1757499362818,1.35383938,112380.0,112370.0,0.03477]
[1757499363919,3.14943938,112380.0,112370.0,0.03477]
[1757499365927,3.10151861,112380.0,112370.0,0.03477]
[1757499369024,3.10151861,112380.0,112370.0,0.04366]
[1757499369628,3.14943938,112380.0,112370.0,0.04366]
[1757499370627,3.10151861,112380.0,112370.0,0.04366]
[1757499371124,3.10151861,112380.0,112370.0,0.00889]
[1757499371323,3.10151861,112380.0,112370.0,0.02151]
[1757499372222,3.14943938,112380.0,112370.0,0.00889]
[1757499372726,3.39943938,112380.0,112370.0,0.00889]
[1757499373318,2.58899938,112380.0,112370.0,0.00889]
[1757499373520,3.39871938,112380.0,112370.0,0.00889]
[1757499374442,2.58899938,112380.0,112370.0,0.00889]
[1757499374644,3.39879938,112380.0,112370.0,0.00889]
[1757499375647,2.58899938,112380.0,112370.0,0.00889]
[1757499375837,3.39875938,112380.0,112370.0,0.00889]
[1757499377844,3.35083861,112380.0,112370.0,0.00889]
[1757499378238,3.4139126,112380.0,112370.0,0.00889]
[1757499380244,3.1639126,112380.0,112370.0,0.00889]
[1757499380449,3.5247126,112380.0,112360.0,0.3608]
[1757499380650,0.47186235,112370.0,112360.0,0.3608]
[1757499381338,0.49098888,112370.0,112360.0,0.3608]
[1757499383845,0.49198888,112370.0,112360.0,0.3608]
[1757499384953,0.49298888,112370.0,112360.0,0.3608]
[1757499385451,1.30218888,112370.0,112360.0,0.3608]
[1757499390557,0.49298888,112370.0,112360.0,0.3608]
[1757499390757,1.30222888,112370.0,112360.0,0.3608]
[1757499392358,1.30222888,112370.0,112350.0,0.39732]
[1757499392558,0.14128105,112360.0,112350.0,0.39732]
[1757499392859,0.16040758,112360.0,112350.0,0.39732]
[1757499393161,1.25220968,112360.0,112350.0,0.39732]
[1757499399248,1.30022888,112360.0,112350.0,0.39732]
[1757499400251,0.01912653,112360.0,112350.0,0.78860105]
[1757499400562,0.96964758,112360.0,112350.0,0.78860105]
[1757499400956,1.11092863,112360.0,112350.0,0.78860105]
[1757499401259,1.11092863,112360.0,112350.0,0.64732]
[1757499404973,1.11092863,112360.0,112350.0,0.78860105]
[1757499405359,1.11092863,112360.0,112350.0,0.64732]
[1757499408663,0.30168863,112360.0,112350.0,0.78860105]
[1757499408864,1.11088863,112360.0,112350.0,0.78860105]
[1757499410071,1.11088863,112360.0,112350.0,0.64732]
[1757499410273,1.11088863,112360.0,112350.0,0.78860105]
[1757499410775,0.30168863,112360.0,112350.0,0.78860105]
[1757499410973,1.11088863,112360.0,112350.0,0.78860105]
[1757499411480,0.30168863,112360.0,112350.0,0.78860105]
[1757499411665,0.91160863,112360.0,112350.0,0.78860105]
[1757499412070,0.30168863,112360.0,112350.0,0.39732]
[1757499412279,2.90664863,112360.0,112350.0,0.39732]
[1757499412568,3.29792968,112360.0,112350.0,0.39732]
[1757499412763,3.15664863,112360.0,112350.0,0.39732]
[1757499414368,3.06250259,112360.0,112350.0,0.39732]
[1757499416670,3.04337606,112360.0,112350.0,0.39732]
[1757499416870,3.06257601,112360.0,112350.0,0.39732]
[1757499420188,2.25337601,112360.0,112350.0,0.39732]
[1757499420385,3.06253601,112360.0,112350.0,0.39732]
[1757499421480,2.25337601,112360.0,112350.0,0.39732]
[1757499421783,3.06253601,112360.0,112350.0,0.39732]
[1757499421985,3.06253601,112360.0,112350.0,0.49152803]
[1757499421986,2.71832798,112360.0,112350.0,0.49152803]
[1757499422184,2.71832798,112360.0,112350.0,0.39732]
[1757499423490,2.81253601,112360.0,112350.0,0.4004]
[1757499438205,2.81245601,112360.0,112350.0,0.4004]
[1757499445808,2.86047521,112360.0,112350.0,0.4004]
[1757499449112,3.51746404,112360.0,112350.0,0.00308]
[1757499449318,3.59623431,112360.0,112350.0,0.00308]
[1757499449612,3.57703436,112360.0,112350.0,0.00308]
[1757499450219,3.49826409,112360.0,112350.0,0.00308]
[1757499450921,3.56224865,112360.0,112350.0,0.00308]
[1757499451306,3.56216865,112360.0,112350.0,0.00308]
[1757499455812,3.49818409,112360.0,112350.0,0.00308]
[1757499456016,3.54612564,112360.0,112350.0,0.00308]
[1757499457110,3.54612564,112360.0,112340.0,0.3608]
[1757499457310,0.18841606,112350.0,112340.0,0.3608]
[1757499457513,0.99749606,112350.0,112340.0,0.3608]
[1757499458322,0.99749606,112350.0,112340.0,0.38347]
[1757499459424,0.99749606,112350.0,112340.0,0.38447]
[1757499459425,0.19750881,112350.0,112340.0,0.38447]
[1757499459613,1.00658881,112350.0,112340.0,0.40629]
[1757499466834,0.10330078,112350.0,112340.0,0.40629]
[1757499467338,0.91238078,112350.0,112340.0,0.40629]
[1757499467934,0.10330078,112350.0,112340.0,0.40629]
[1757499468129,0.91238078,112350.0,112340.0,0.40629]
[1757499469135,1.00658881,112350.0,112340.0,0.40629]
[1757499469633,0.91238078,112350.0,112340.0,0.40629]
[1757499472936,0.00909275,112350.0,112340.0,0.40629]
[1757499473132,0.90328803,112350.0,112340.0,0.40629]
[1757499474234,0.99749606,112350.0,112340.0,0.40629]
[1757499474434,1.10067694,112350.0,112340.0,0.40629]
[1757499476040,1.14861849,112350.0,112340.0,0.40629]
[1757499477233,1.10067694,112350.0,112340.0,0.40629]
[1757499480841,1.14861849,112350.0,112340.0,0.40629]
[1757499482844,0.86593583,112350.0,112340.0,0.40629]
[1757499483043,1.14861849,112350.0,112340.0,0.40629]
[1757499484943,1.10067694,112350.0,112340.0,0.40629]
[1757499490465,1.14861849,112350.0,112340.0,0.40629]
[1757499493368,0.86593583,112350.0,112340.0,0.40629]
[1757499493861,1.14861849,112350.0,112340.0,0.40629]
[1757499495869,1.10067694,112350.0,112340.0,0.40629]
[1757499497164,1.1646615,112350.0,112340.0,0.40629]
[1757499497471,1.1646615,112350.0,112340.0,0.38447]
[1757499498371,1.10067694,112350.0,112340.0,0.38447]
[1757499498560,1.18390476,112350.0,112340.0,0.38447]
[1757499499165,1.18390438,112350.0,112340.0,0.38447]
[1757499499471,1.18390438,112350.0,112340.0,0.02367]
[1757499499672,1.16795381,112350.0,112340.0,0.0099]
[1757499499975,1.87206115,112350.0,112320.0,0.39514]
[1757499500165,0.28268266,112330.0,112320.0,0.39514]
[1757499500469,1.11100554,112330.0,112320.0,0.39514]
[1757499500670,1.15901938,112330.0,112320.0,0.39514]
[1757499500875,1.15901938,112330.0,112310.0,0.39629]
[1757499501062,0.28268266,112320.0,112310.0,0.39629]
[1757499501266,0.30192554,112320.0,112310.0,0.39629]
[1757499501974,0.51583082,112320.0,112310.0,0.39629]
[1757499502175,0.42250333,112320.0,112310.0,0.39629]
[1757499503074,0.42250333,112320.0,112310.0,0.40029]
[1757499503874,2.21874333,112320.0,112310.0,0.40029]
[1757499504076,3.02898333,112320.0,112310.0,0.40029]
[1757499504273,2.21874333,112320.0,112310.0,0.40029]
[1757499504474,3.02898333,112320.0,112310.0,0.40029]
[1757499504774,3.02898333,112320.0,112310.0,0.39829]
[1757499505276,3.02890333,112320.0,112310.0,0.39829]
[1757499505976,2.98088949,112320.0,112310.0,0.39829]
[1757499510279,2.17072949,112320.0,112310.0,0.39829]
[1757499510483,2.98132949,112320.0,112310.0,0.39829]
[1757499511379,2.69860683,112320.0,112310.0,0.39829]
[1757499511682,2.98128949,112320.0,112310.0,0.39829]
[1757499511882,1.88804683,112320.0,112310.0,0.39829]
[1757499512181,2.02938816,112320.0,112310.0,0.53963133]
[1757499512370,2.84206816,112320.0,112310.0,0.53963133]
[1757499512574,2.02938816,112320.0,112310.0,0.53963133]
[1757499512776,2.98340949,112320.0,112310.0,0.53963133]
[1757499512976,2.98340949,112320.0,112310.0,0.39829]
[1757499515377,2.17072949,112320.0,112310.0,0.39829]
[1757499515682,2.98324949,112320.0,112310.0,0.39829]
[1757499516475,2.98324949,112320.0,112310.0,0.03749]
[1757499517187,2.98324949,112320.0,112310.0,0.39829]
[1757499518780,3.12459082,112320.0,112310.0,0.37657]
[1757499518982,3.37459082,112320.0,112310.0,0.3628]
[1757499519289,3.12459082,112320.0,112310.0,0.3628]
[1757499521381,2.31207082,112320.0,112310.0,0.3628]
[1757499521687,3.37583082,112320.0,112310.0,0.3628]
[1757499523881,3.37583082,112320.0,112310.0,0.3618]
[1757499524290,3.42384466,112320.0,112310.0,0.3608]
[1757499524590,2.61008466,112320.0,112310.0,0.3618]
[1757499524785,3.42396466,112320.0,112310.0,0.3618]
[1757499525188,2.99994067,112320.0,112310.0,0.3618]
[1757499525385,3.42392466,112320.0,112310.0,0.3618]
[1757499525684,3.42392466,112320.0,112310.0,0.37495]
[1757499525885,3.37591082,112320.0,112310.0,0.37495]
[1757499526886,3.42392466,112320.0,112310.0,0.37495]